bitfinex/quotes_ETHUSD_20241223
["timestamp","ask_amount","ask_price","bid_price","bid_amount"]
[1734967452837,3.12513565,3300.5,3299.3,1.3228]
[1734967453178,3.0,3300.4,3299.3,1.3228]
[1734967453378,3.0,3300.4,3299.5,0.61181055]
[1734967455146,3.0,3301.0,3299.5,0.61181055]
[1734967455749,3.0,3301.0,3299.6,1.3015]
[1734967455946,3.0,3301.0,3299.7,0.14133106]
[1734967456150,3.0,3301.0,3299.8,1.3015]
[1734967456350,3.12513565,3301.6,3299.8,1.3015]
[1734967456570,0.43502357,3301.8,3300.4,0.60050299]
[1734967456841,3.12513565,3302.1,3300.5,1.3015]
[1734967457373,1.2251,3302.4,3300.5,1.3015]
[1734967457374,3.12513565,3301.6,3300.5,1.3015]
[1734967458166,3.12513565,3301.6,3300.7,0.60487691]
[1734967458383,3.12513565,3301.6,3300.5,1.3015]
[1734967458685,3.12513565,3301.1,3300.5,1.3015]
[1734967458890,3.43764922,3301.1,3300.5,1.3015]
[1734967459397,3.12513565,3301.6,3300.5,1.3015]
[1734967459550,3.0,3301.5,3300.5,1.90370396]
[1734967459751,1.2251,3302.1,3300.5,1.90370396]
[1734967459752,3.12513565,3302.1,3300.5,1.90370396]
[1734967459951,3.12513565,3302.1,3300.6,1.276]
[1734967461063,3.0,3301.5,3300.6,1.276]
[1734967461467,3.0,3302.0,3300.8,0.62231185]
[1734967461666,3.0,3302.0,3300.9,1.244]
[1734967461867,3.02874,3301.7,3300.9,1.244]
[1734967462052,3.02892,3301.5,3300.9,1.244]
[1734967462251,3.02852,3302.0,3301.3,0.61228828]
[1734967462713,3.02895,3301.5,3301.3,0.61228828]
[1734967462855,3.02901,3301.4,3301.3,0.61228828]
[1734967463052,3.02843,3302.1,3301.3,0.61228828]
[1734967463256,3.02846,3302.0,3301.4,1.3484]
[1734967463568,3.02938,3301.1,3301.0,1.3484]
[1734967464183,3.02938,3301.1,3300.8,0.59596253]
[1734967464184,3.02938,3301.0,3300.8,0.59596253]
[1734967464390,3.02947,3300.9,3300.8,0.59596253]
[1734967465257,3.0,3301.3,3300.7,1.3484]
[1734967465457,3.02946,3301.0,3300.7,1.3484]
[1734967465761,3.02925,3301.2,3300.7,1.3484]
[1734967466162,3.0,3301.4,3300.7,1.3484]
[1734967466504,3.0,3301.2,3300.7,1.3484]
[1734967466725,3.0,3301.0,3300.7,1.3484]
[1734967466931,3.02993,3300.4,3300.3,1.2735]
[1734967467283,3.02973,3300.7,3300.3,1.8739567]
[1734967467606,3.02977,3300.6,3300.3,1.8739567]
[1734967467813,3.0,3300.8,3300.3,1.8739567]
[1734967467976,3.02968,3300.7,3300.3,1.8739567]
[1734967468322,3.0295,3300.9,3300.3,1.8739567]
[1734967468523,3.02833,3302.2,3300.3,1.8739567]
[1734967468524,3.12513565,3301.6,3300.3,1.8739567]
[1734967469523,3.02962,3300.8,3300.3,1.8739567]
[1734967470020,3.0,3301.5,3300.3,1.8739567]
[1734967470228,3.02993,3300.4,3300.3,1.8739567]
[1734967470526,3.0,3301.0,3300.3,1.8739567]
[1734967470683,3.0299,3300.5,3300.3,1.8739567]
[1734967471037,3.0,3301.0,3300.3,1.8739567]
[1734967471209,3.02961,3300.8,3300.3,1.8739567]
[1734967471392,3.12513565,3301.1,3300.3,1.8739567]
[1734967471589,3.02966,3300.7,3300.3,1.8739567]
[1734967471807,3.02975,3300.6,3300.3,1.8739567]
[1734967472400,6.76990521,3301.1,3300.3,1.8739567]
[1734967472606,3.02993,3300.4,3300.3,1.8739567]
[1734967472807,3.02993,3300.4,3297.6,3.197]
[1734967472808,3.0303,3300.0,3299.9,1.31]
[1734967472990,3.0303,3300.0,3298.2,0.03030181]
[1734967472991,3.03068,3299.6,3298.2,1.31]
[1734967473195,6.03081,3299.5,3298.2,1.31]
[1734967473391,3.03143,3298.8,3298.2,1.31]
[1734967473591,3.12513565,3299.6,3298.2,1.31]
[1734967473592,3.03149,3298.7,3298.2,1.31]
[1734967473797,3.12513565,3299.1,3298.2,1.31]
[1734967473995,3.0,3298.5,3297.0,2.86229247]
[1734967474222,3.03194,3298.3,3297.3,0.07384148]
[1734967474411,3.12513565,3299.1,3297.3,1.349]
[1734967474625,3.0,3299.0,3298.2,0.60174625]
[1734967475136,3.03131,3298.9,3298.2,0.60174625]
[1734967475339,3.0,3299.0,3298.3,1.3722]
[1734967475550,1.2251,3299.6,3298.3,1.3722]
[1734967475551,3.0303,3300.0,3298.5,3.03166]
[1734967475698,2.53217965,3300.1,3298.6,0.30619771]
[1734967475699,3.03068,3299.6,3298.6,0.30619771]
[1734967476047,3.03081,3299.5,3299.0,0.60490471]
[1734967476242,3.03012,3300.2,3299.0,0.60490471]
[1734967476243,3.12513565,3299.6,3299.0,0.60490471]
[1734967476444,3.12513565,3299.6,3298.5,1.3722]
[1734967476626,3.03078,3299.5,3298.5,1.3722]
[1734967476827,3.12513565,3300.1,3298.6,0.03031385]
[1734967476996,3.12513565,3300.5,3298.9,1.273]
[1734967477197,3.03029,3300.1,3299.1,1.273]
[1734967477711,6.15501565,3300.5,3299.1,1.273]
[1734967477712,3.0303,3300.0,3299.1,1.273]
[1734967477922,3.03029,3300.1,3299.9,0.60001336]
[1734967478107,3.0303,3300.0,3299.9,0.60001336]
[1734967479248,3.03011,3300.3,3299.9,0.60001336]
[1734967479544,3.12513565,3300.5,3299.9,0.60001336]
[1734967479545,3.0,3300.4,3299.9,0.60001336]
[1734967479728,6.02993,3300.4,3299.9,0.60001336]
[1734967479930,1.794,3300.4,3300.0,1.2794]
[1734967480247,2.46420565,3301.0,3300.0,1.46734134]
[1734967480399,5.49361565,3301.0,3300.0,1.46734134]
[1734967480828,3.02913,3301.3,3300.2,1.2813]
[1734967481199,3.12513565,3301.6,3300.3,3.02999]
[1734967481395,3.12513565,3301.6,3300.4,0.431129]
[1734967481646,6.15398565,3301.6,3300.4,0.431129]
[1734967482333,6.15398565,3301.6,3301.5,0.61107296]
[1734967483399,3.32090562,3302.5,3301.5,0.61107296]
[1734967483400,3.02851,3302.0,3301.5,0.61107296]
[1734967484117,0.29281562,3303.0,3301.5,0.61107296]
[1734967484118,6.15396565,3301.6,3301.5,2.96e-06]
[1734967484318,3.74053221,3301.6,3299.4,1.2488]
[1734967484521,3.12513565,3300.8,3300.3,0.59471178]
[1734967484845,3.0,3300.7,3300.3,1.84351178]
[1734967485148,3.12513565,3300.8,3300.3,1.84351178]
[1734967486005,3.74058921,3300.8,3300.3,1.84351178]
[1734967486201,3.02966,3300.7,3300.3,1.84351178]
[1734967486431,3.74058921,3300.8,3300.3,1.84351178]
[1734967486432,3.02984,3300.5,3300.3,0.59471178]
[1734967486738,3.0,3300.4,3300.3,0.59471178]
[1734967487082,3.0,3300.7,3300.3,0.59471178]
[1734967487581,3.0,3301.0,3300.3,0.59471178]
[1734967487785,0.90293,3301.0,3300.3,0.59471178]
[1734967487936,6.02927,3301.2,3300.3,0.59471178]
[1734967488143,3.0,3301.2,3299.9,1.2397]
[1734967489781,3.0,3300.6,3299.9,1.2397]
[1734967489984,3.12513565,3301.3,3298.4,14.16434284]
[1734967489985,3.12513565,3300.8,3298.8,1.2303]
[1734967490136,3.03021,3300.1,3298.8,1.2303]
[1734967490342,3.0,3300.2,3298.8,1.2303]
[1734967490869,3.03022,3300.1,3298.8,1.2303]
[1734967491174,6.03051,3299.8,3298.8,1.2303]
[1734967491353,3.0306,3299.7,3298.8,1.2303]
[1734967491556,3.03079,3299.5,3298.8,1.2303]
[1734967491862,0.30306,3299.7,3298.8,1.2303]
[1734967492351,3.30306,3299.7,3299.4,0.61771324]
[1734967492550,6.03076,3299.5,3299.4,0.61771324]
[1734967493023,18.27073,3299.5,3299.4,0.61771324]
[1734967493185,26.247663,3299.5,3299.4,0.61771324]
[1734967493341,3.0,3299.4,3298.3,1.3588]
[1734967493542,3.03145,3298.8,3298.3,1.3588]
[1734967494154,3.03145,3298.8,3298.7,0.62123608]
[1734967494397,6.03145,3298.8,3298.7,0.62123608]
[1734967494535,6.634595,3298.8,3298.7,0.62123608]
[1734967494742,21.45766,3298.8,3298.7,0.62123608]
[1734967494980,10.874168,3298.8,3298.7,0.62123608]
[1734967495293,9.304695,3298.8,3298.7,0.62123608]
[1734967496293,6.634595,3298.8,3298.7,0.62123608]
[1734967496578,6.03145,3298.8,3298.7,0.62123608]
[1734967497287,3.0,3299.1,3298.7,0.62123608]
[1734967497594,6.03121,3299.1,3298.7,0.62123608]
[1734967497737,3.0,3299.1,3298.7,0.62123608]
[1734967497941,3.0,3298.9,3298.7,0.62123608]
[1734967498405,3.0,3299.1,3298.7,0.62123608]
[1734967499984,6.03115,3299.1,3298.7,0.62123608]
[1734967500185,3.91562857,3299.1,3298.7,0.62123608]
[1734967500369,6.0314,3298.8,3298.7,0.62123608]
[1734967500569,3.0,3298.9,3298.7,0.62123608]
[1734967500867,3.0,3299.6,3298.7,0.62123608]
[1734967501094,3.03133,3298.9,3298.7,0.62123608]
[1734967501300,9.296533,3298.8,3298.7,0.62123608]
[1734967502067,3.03158,3298.6,3297.1,1.2957]
[1734967502331,3.03158,3298.6,3296.4,0.1675456]
[1734967502332,3.12513565,3297.2,3296.4,0.1675456]
[1734967502539,6.12513565,3296.5,3296.4,0.1675456]
[1734967503630,3.0,3296.8,3296.4,0.76919696]
[1734967503832,3.94909857,3296.8,3296.4,0.76919696]
[1734967503995,3.0,3296.9,3296.4,0.76919696]
[1734967504202,3.03273,3297.4,3296.4,0.76919696]
[1734967504398,6.12513565,3297.5,3296.4,0.76919696]
[1734967504712,2.47399463,3297.6,3296.4,0.76919696]
[1734967504915,3.12513565,3298.0,3296.5,0.2030197]
[1734967505426,6.15731565,3298.0,3296.5,0.2030197]
[1734967505654,2.47399463,3298.4,3296.5,0.2030197]
[1734967505811,3.03194,3298.3,3296.6,4.2751]
[1734967506016,2.47399463,3298.4,3296.6,1.2751]
[1734967506017,3.03226,3297.9,3296.6,1.2751]
[1734967506408,3.03226,3297.9,3297.8,0.61363608]
[1734967506604,3.03232,3297.8,3296.6,1.2751]
[1734967506852,0.9745456,3297.7,3297.6,0.59490652]
[1734967507053,3.0,3297.6,3296.6,1.2751]
[1734967507436,6.0325,3297.6,3297.5,0.60652128]
[1734967507645,3.0326,3297.5,3296.4,0.1675456]
[1734967507816,3.0,3297.6,3296.4,0.1675456]
[1734967508017,3.03241,3297.7,3296.4,0.1675456]
[1734967508018,3.0,3296.9,3296.4,0.1675456]
[1734967508223,3.0,3297.1,3296.4,0.1675456]
[1734967508438,6.03317,3296.9,3296.8,0.59983215]
[1734967508979,3.1053,3297.7,3296.8,0.59983215]
[1734967509529,3.03281,3297.3,3296.8,0.54983215]
[1734967509757,3.13773,3297.7,3296.8,0.54983215]
[1734967509758,3.0,3297.4,3296.8,0.54983215]
[1734967510072,3.13735,3298.1,3296.8,0.54983215]
[1734967510269,0.419035,3298.1,3296.9,1.2751]
[1734967510469,0.419035,3298.1,3296.4,0.1675456]
[1734967510470,3.03307,3297.0,3296.4,1.4360456]
[1734967510971,0.32784016,3298.0,3296.4,1.4360456]
[1734967511180,0.32784016,3298.0,3296.9,0.62281842]
[1734967511392,6.13836,3297.0,3296.4,0.1675456]
[1734967511527,6.03352,3296.5,3296.4,0.1675456]
[1734967511727,6.03352,3296.5,3296.4,0.77789792]
[1734967511930,8.52552,3296.5,3296.4,0.77789792]
[1734967512164,6.03352,3296.5,3296.4,0.77789792]
[1734967512678,6.03352,3296.5,3294.2,0.03034132]
[1734967512679,3.03476,3295.2,3294.2,0.03034132]
[1734967512884,3.0,3295.4,3293.9,1.3572]
[1734967513087,3.0,3295.4,3295.1,0.61664015]
[1734967513088,6.03471,3295.2,3295.1,0.61664015]
[1734967513597,0.48897219,3295.4,3295.1,0.61664015]
[1734967513967,3.0,3296.0,3295.1,0.61664015]
[1734967514168,0.603352,3296.4,3295.1,0.61664015]
[1734967514390,3.67772219,3296.6,3295.1,0.61664015]
[1734967514791,3.67772219,3296.6,3295.2,0.04989533]
[1734967514792,0.64427219,3296.6,3295.2,0.04989533]
[1734967514976,3.98954887,3296.6,3295.2,0.04989533]
[1734967515300,3.98954887,3296.6,3294.7,3.03515]
[1734967515301,3.50057668,3296.6,3294.7,3.03515]
[1734967515602,0.49070582,3297.1,3295.2,3.12513565]
[1734967515759,3.52160219,3297.5,3296.5,0.60198431]
[1734967515967,0.48897219,3297.5,3296.5,0.60198431]
[1734967516279,3.03276,3297.4,3296.5,0.60198431]
[1734967516478,3.38497322,3297.3,3296.5,0.60198431]
[1734967516803,0.35217322,3297.3,3296.3,1.2724]
[1734967517008,0.48897219,3297.3,3297.2,0.62095785]
[1734967517156,7.37575119,3297.3,3297.2,0.62095785]
[1734967517363,9.07632119,3297.3,3297.2,0.62095785]
[1734967517910,7.69553119,3297.3,3297.2,0.62095785]
[1734967518111,4.66275119,3297.3,3297.2,0.62095785]
[1734967518314,5.43229131,3297.3,3297.2,0.62095785]
[1734967519176,11.46507131,3297.3,3297.2,0.62095785]
[1734967519423,11.46507131,3297.3,3296.3,1.2724]
[1734967519424,3.0,3297.2,3296.3,1.2724]
[1734967519628,0.48897219,3297.1,3296.3,1.2724]
[1734967519972,3.0,3296.8,3296.3,1.2724]
[1734967520191,0.48897219,3296.7,3295.2,1.2924]
[1734967520406,0.48897219,3297.6,3296.0,1.2924]
[1734967520724,3.52148219,3297.6,3296.0,1.2924]
[1734967520929,3.03214,3298.0,3296.7,1.3754]
[1734967521127,0.318744,3297.9,3296.7,1.3754]
[1734967521326,0.318744,3297.9,3296.8,0.03033134]
[1734967521631,0.48897219,3298.6,3297.0,1.3754]
[1734967521831,0.303133,3298.8,3296.7,1.3907]
[1734967521985,4.09115406,3299.5,3297.9,4.4229]
[1734967522190,4.09115406,3299.5,3298.0,1.42101843]
[1734967522399,4.09115406,3299.5,3298.1,3.06233829]
[1734967522609,4.09115406,3299.5,3298.3,1.2965]
[1734967522902,2.47399463,3299.5,3297.9,0.03031724]
[1734967523100,2.47399463,3299.5,3298.5,1.2965]
[1734967523101,0.71951319,3299.5,3298.5,1.2965]
[1734967523428,3.93763366,3300.2,3298.5,1.2965]
[1734967523645,0.90751366,3300.2,3299.5,1.2894]
[1734967523793,3.47751451,3301.1,3299.5,1.2894]
[1734967523989,0.44822451,3301.1,3299.5,1.2894]
[1734967524331,3.72477337,3301.7,3299.7,4.3605]
[1734967524332,0.6601995,3301.7,3299.7,4.3605]
[1734967524537,3.12513565,3301.3,3301.1,0.60206709]
[1734967524830,3.02967,3300.7,3299.8,1.3605]
[1734967525032,3.02976,3300.6,3299.8,1.3605]
[1734967525235,3.03014,3300.2,3299.8,1.3605]
[1734967525537,3.03014,3300.2,3298.6,1.4009]
[1734967525739,1.21048966,3300.5,3300.1,0.61374354]
[1734967525887,3.03011,3300.2,3300.1,0.61374354]
[1734967526084,25.48747051,3300.2,3300.1,0.61374354]
[1734967526342,25.48747051,3300.2,3298.6,1.4009]
[1734967526343,3.03052,3299.8,3298.6,1.4009]
[1734967526549,3.12513565,3299.8,3298.6,1.4009]
[1734967526835,3.0,3298.5,3296.9,1.2882]
[1734967527182,3.0314,3298.9,3297.0,3.03303]
[1734967527412,3.0,3298.8,3297.8,1.2762]
[1734967527786,3.03123,3299.0,3297.8,1.2762]
[1734967527987,0.603123,3298.9,3298.6,0.61371534]
[1734967528246,3.03115,3299.1,3298.6,0.61371534]
[1734967528454,6.03123,3299.0,3298.6,0.61371534]
[1734967528998,3.1553,3299.6,3298.6,0.61371534]
[1734967529305,3.03132,3298.9,3298.6,0.61371534]
[1734967529505,0.303132,3298.8,3298.6,0.61371534]
[1734967530215,3.0,3299.0,3298.6,0.61371534]
[1734967530449,3.0,3299.2,3298.6,0.61371534]
[1734967530760,3.0,3299.1,3298.6,0.61371534]
[1734967531662,3.03091,3299.4,3298.6,0.61371534]
[1734967531818,0.31251357,3299.7,3298.7,1.4046]
[1734967532013,3.03038,3300.0,3298.7,1.4046]
[1734967532220,0.303038,3299.9,3298.7,1.4046]
[1734967532462,3.02984,3300.5,3298.7,1.4046]
[1734967532765,3.03064,3299.7,3299.4,0.61329007]
[1734967533171,5.207307,3299.6,3299.4,0.61329007]
[1734967533335,3.0,3299.8,3299.4,0.61329007]
[1734967533541,0.3,3299.7,3299.4,0.61329007]
[1734967533859,3.0,3300.1,3299.4,0.61329007]
[1734967534068,3.0,3299.7,3299.4,0.61329007]
[1734967534246,3.0,3300.1,3299.4,0.61329007]
[1734967534418,3.03067,3299.6,3299.4,0.61329007]
[1734967534614,3.03047,3299.9,3299.4,0.61329007]
[1734967534845,3.303047,3299.8,3299.4,0.61329007]
[1734967535042,3.03067,3299.6,3299.4,0.61329007]
[1734967535434,4.021185,3299.5,3299.4,0.61329007]
[1734967535649,0.303047,3299.8,3299.4,0.61329007]
[1734967535967,0.303047,3299.8,3296.9,1.3914]
[1734967535968,3.0316,3298.6,3296.9,1.3914]
[1734967536119,3.1553,3299.6,3297.2,1.3914]
[1734967536317,0.303047,3299.8,3297.0,0.442462]
[1734967536318,0.303047,3299.8,3298.6,1.3914]
[1734967536523,3.0,3300.3,3298.6,1.3914]
[1734967536763,3.60352451,3300.5,3298.6,1.3914]
[1734967536764,3.0,3300.1,3298.6,1.3914]
[1734967536930,3.61458915,3300.5,3298.6,1.3914]
[1734967537131,3.0,3299.6,3296.7,1.3914]
[1734967537343,3.0316,3298.6,3296.9,1.3914]
[1734967537566,3.0316,3298.6,3297.1,1.34]
[1734967537567,3.0,3298.5,3297.1,1.34]
[1734967538124,0.30316,3298.6,3297.1,1.34]
[1734967538443,3.0,3299.2,3298.4,0.59349434]
[1734967538444,3.03104,3299.2,3298.4,0.59349434]
[1734967538753,3.03085,3299.4,3298.4,0.59349434]
[1734967538937,0.1845,3299.5,3298.4,0.59349434]
[1734967539144,3.0,3299.1,3298.4,0.59349434]
[1734967539364,3.03168,3298.5,3298.4,0.59349434]
[1734967539530,3.03157,3298.7,3298.4,0.54349434]
[1734967539729,0.303157,3298.6,3298.4,0.54349434]
[1734967540455,6.03168,3298.5,3298.4,0.54349434]
[1734967540828,6.03168,3298.5,3297.8,1.3421]
[1734967540829,3.0,3298.5,3297.8,1.3421]
[1734967541028,3.03195,3298.2,3297.8,1.3421]
[1734967541328,0.1845,3298.5,3298.1,0.59935383]
[1734967541530,6.03195,3298.2,3298.1,0.59935383]
[1734967541730,3.03234,3297.8,3296.6,1.3877]
[1734967542139,3.0,3298.2,3296.6,1.3877]
[1734967542341,3.0,3298.4,3296.6,1.3877]
[1734967542569,3.0,3298.2,3296.6,1.3877]
[1734967542878,0.1845,3299.0,3297.7,0.61904862]
[1734967543184,3.0,3299.1,3297.7,0.61904862]
[1734967543185,5.48868021,3298.9,3297.7,0.61904862]
[1734967543389,3.0,3298.5,3297.7,0.61904862]
[1734967544272,3.0,3298.7,3297.7,0.61904862]
[1734967544588,3.303111,3299.1,3297.6,1.3877]
[1734967544882,0.3303111,3299.0,3298.4,0.61989963]
[1734967545085,2.93690472,3299.5,3298.5,1.4106]
[1734967545245,2.48868021,3299.5,3298.5,1.4106]
[1734967545773,2.48868021,3299.8,3298.9,0.61096403]
[1734967546082,2.48868021,3299.8,3299.0,1.3158]
[1734967546283,3.03069,3299.6,3299.0,1.3158]
[1734967546488,2.48868021,3299.8,3299.0,1.3158]
[1734967546489,3.0309,3299.4,3299.0,1.3158]
[1734967546649,2.48868021,3299.8,3299.3,0.60594088]
[1734967547059,0.1845,3300.5,3299.3,0.60594088]
[1734967547060,1.32917574,3300.7,3299.4,1.3302]
[1734967547458,3.03076,3299.5,3299.4,1.3302]
[1734967547657,0.303076,3299.5,3299.3,0.60594088]
[1734967547860,3.03057,3299.7,3299.3,0.60594088]
[1734967548356,3.03075,3299.6,3299.3,0.60594088]
[1734967548583,3.45928915,3299.9,3299.3,0.60594088]
[1734967548784,3.03068,3299.6,3299.3,0.60594088]
[1734967548987,3.03085,3299.4,3299.3,0.60594088]
[1734967549162,0.303085,3299.4,3299.3,0.60594088]
[1734967549360,6.03085,3299.4,3299.3,0.60594088]
[1734967549622,3.0,3299.4,3299.3,0.60594088]
[1734967550003,3.03043,3299.9,3299.3,0.60594088]
[1734967550166,3.0303,3300.0,3299.3,0.60594088]
[1734967550366,0.45928915,3300.3,3299.4,1.3205]
[1734967550594,0.35524988,3300.2,3299.3,0.60594088]
[1734967550761,3.38543988,3300.2,3299.3,0.60594088]
[1734967550979,0.35524988,3300.2,3299.3,0.60594088]
[1734967551402,0.45928915,3300.7,3299.4,1.3108]
[1734967551602,3.02995,3300.4,3299.4,1.3108]
[1734967551815,3.0,3300.4,3299.4,1.3108]
[1734967552024,3.0,3300.2,3299.4,1.3108]
[1734967552318,6.03012,3300.2,3300.1,0.62192508]
[1734967552519,6.633132,3300.2,3300.1,0.62192508]
[1734967552883,3.603012,3300.2,3300.1,0.62192508]
[1734967553078,3.0,3300.1,3299.2,1.3108]
[1734967553313,3.03036,3300.0,3299.2,1.3108]
[1734967553511,3.0,3300.1,3299.9,0.59980246]
[1734967553808,3.0,3300.3,3299.9,0.59980246]
[1734967554007,6.0301,3300.3,3299.9,0.59980246]
[1734967554318,3.0,3299.9,3299.2,1.3108]
[1734967554482,3.03133,3298.9,3297.7,1.3866]
[1734967554680,6.03057,3299.7,3297.7,1.3866]
[1734967554681,3.03157,3298.7,3297.7,1.3866]
[1734967555006,3.03085,3299.4,3297.7,1.3866]
[1734967555007,3.03122,3299.0,3297.7,1.3866]
[1734967555208,3.0,3298.8,3298.4,0.60493203]
[1734967555381,3.03168,3298.5,3298.4,0.60493203]
[1734967555584,0.303168,3298.5,3298.4,0.60493203]
[1734967555930,3.0,3299.0,3298.4,0.60493203]
[1734967556114,3.5844248,3299.3,3298.4,0.60493203]
[1734967556115,3.0,3299.3,3298.5,1.3]
[1734967556432,3.0,3299.4,3298.5,1.3]
[1734967556588,3.03094,3299.3,3298.4,0.60493203]
[1734967556797,3.03168,3298.5,3298.4,0.60493203]
[1734967557139,2.50553056,3299.5,3298.4,0.60493203]
[1734967557140,3.0,3299.7,3298.5,1.3049]
[1734967557315,4.03264931,3299.8,3298.5,1.3049]
[1734967557714,3.03104,3299.2,3298.5,1.3049]
[1734967558097,3.03069,3299.6,3298.5,1.3049]
[1734967558304,3.03085,3299.4,3298.5,1.3049]
[1734967558522,3.0,3299.3,3298.5,1.3049]
[1734967558722,0.70633393,3299.6,3298.5,1.3049]
[1734967559123,4.23573451,3300.2,3298.5,1.3049]
[1734967559124,3.0,3299.5,3299.1,0.60323091]
[1734967559325,3.0,3299.7,3299.1,0.60323091]
[1734967559529,3.0,3299.7,3299.2,1.4035]
[1734967560320,3.03075,3299.6,3299.2,1.4035]
[1734967560535,0.303075,3299.5,3299.2,1.4035]
[1734967561057,0.303075,3299.5,3299.1,0.60323091]
[1734967561257,3.0,3299.7,3296.6,3.03334]
[1734967561258,6.03116,3299.1,3298.3,1.3057]
[1734967561414,3.0,3299.1,3297.8,1.3057]
[1734967561616,3.03148,3298.8,3298.5,0.61091849]
[1734967561833,3.03158,3298.6,3298.5,0.61091849]
[1734967562516,0.303148,3298.7,3297.8,1.3057]
[1734967562717,0.1845,3298.6,3297.3,1.3057]
[1734967562958,2.50553056,3299.0,3297.8,0.61584084]
[1734967563162,6.03131,3298.9,3297.9,1.4031]
[1734967563421,2.50553056,3299.0,3298.3,3.03183]
[1734967563719,2.50553056,3299.0,3298.8,0.61012849]
[1734967564244,2.50553056,3299.0,3298.9,1.3643]
[1734967564245,0.12679775,3299.0,3298.9,1.3643]
[1734967564444,0.31526342,3300.1,3298.9,1.56174285]
[1734967564761,3.34554342,3300.1,3298.9,1.56174285]
[1734967565056,0.45928915,3300.3,3298.9,1.56174285]
[1734967565258,3.03028,3300.1,3298.9,1.56174285]
[1734967565558,3.03114,3299.1,3298.9,1.3643]
[1734967565764,3.0314,3298.9,3298.5,1.3358]
[1734967565918,0.45928915,3299.3,3298.7,0.59797453]
[1734967566121,3.03092,3299.4,3298.7,0.59797453]
[1734967566327,0.1845,3299.7,3298.7,0.59797453]
[1734967566328,0.303092,3299.3,3298.7,0.59797453]
[1734967566560,3.12513565,3299.5,3298.5,1.3358]
[1734967566758,3.03128,3299.0,3297.9,1.3358]
[1734967567136,3.0,3299.4,3298.5,0.61947897]
[1734967567323,3.0313,3299.0,3298.5,0.61947897]
[1734967567525,3.03094,3299.3,3298.5,0.61947897]
[1734967567526,3.0,3299.2,3298.5,0.61947897]
[1734967567725,6.14174195,3299.0,3298.6,1.3358]
[1734967568060,3.03152,3298.7,3298.5,0.61947897]
[1734967568259,6.14174195,3299.0,3298.5,0.61947897]
[1734967568448,3.0,3298.8,3298.5,0.61947897]
[1734967568646,3.0,3298.9,3298.5,0.61947897]
[1734967568849,3.9172872,3298.9,3298.5,0.61947897]
[1734967569034,3.03144,3298.8,3298.5,0.61947897]
[1734967569238,3.9172872,3298.9,3298.5,0.61947897]
[1734967569459,3.03124,3299.0,3298.5,0.61947897]
[1734967569460,3.0,3299.0,3298.5,0.61947897]
[1734967570629,3.14174195,3299.1,3298.5,0.61947897]
[1734967570923,3.14174195,3298.9,3298.5,0.61947897]
[1734967571242,3.14174195,3298.9,3298.6,1.3139]
[1734967571773,3.03158,3298.6,3298.5,0.61947897]
[1734967572077,0.303158,3298.6,3298.5,0.61947897]
[1734967572367,3.334738,3298.6,3298.5,0.61947897]
[1734967572580,3.03139,3298.9,3298.5,0.61947897]
[1734967572740,3.0315,3298.7,3298.5,0.61947897]
[1734967573071,5.193831,3298.6,3297.3,1.3332]
[1734967573368,3.2443,3298.4,3297.3,1.3332]
[1734967573564,3.0,3297.2,3296.7,1.3332]
[1734967573767,3.03268,3297.5,3296.4,1.26623415]
[1734967573943,3.0,3296.5,3296.4,1.26623415]
[1734967574140,6.03352,3296.5,3296.4,1.26623415]
[1734967574530,9.15865565,3296.5,3296.4,1.26623415]
[1734967574730,9.15865565,3296.5,3295.4,1.3332]
[1734967574731,3.03379,3296.2,3295.4,1.3332]
[1734967575495,3.03398,3296.1,3295.9,0.60497917]
[1734967575695,10.07452122,3296.5,3295.1,1.3869]
[1734967575967,3.0,3296.0,3295.1,1.3869]
[1734967576157,3.03433,3295.7,3295.1,1.3869]
[1734967576352,3.03433,3295.7,3293.5,3.12513565]
[1734967576353,3.0,3295.3,3293.9,1.3518]
[1734967576729,3.0,3295.6,3293.9,1.3518]
[1734967576969,3.0,3295.7,3295.1,1.3518]
[1734967577535,2.51918046,3295.8,3293.3,1.3888]
[1734967577536,3.03501,3294.9,3293.3,1.3888]
[1734967577847,3.0,3295.1,3293.3,1.3888]
[1734967578042,3.03537,3294.5,3293.3,1.3888]
[1734967578261,3.0,3294.9,3293.3,1.3888]
[1734967578578,3.12513565,3293.5,3293.4,0.61385536]
[1734967578782,3.03639,3293.4,3293.2,0.1675456]
[1734967579090,3.93315565,3293.4,3293.2,0.1675456]
[1734967579377,6.03599,3293.9,3293.2,0.1675456]
[1734967579378,0.39331557,3293.3,3293.2,0.1675456]
[1734967579579,3.03585,3294.0,3293.2,0.1675456]
[1734967579735,3.03595,3293.9,3293.2,0.1675456]
[1734967579929,3.0,3293.8,3293.2,0.1675456]
[1734967580124,3.0,3294.4,3293.2,0.1675456]
[1734967580324,0.44822451,3294.4,3293.2,0.1675456]
[1734967580561,3.03583,3294.0,3293.2,0.1675456]
[1734967580833,3.44822451,3294.4,3293.2,0.1675456]
[1734967581141,0.2443,3294.6,3293.2,0.76863384]
[1734967581343,0.44822451,3294.5,3293.2,0.76863384]
[1734967581552,3.03601,3293.8,3293.2,0.1675456]
[1734967581754,3.0,3293.8,3293.2,0.1675456]
[1734967581953,3.44822451,3293.8,3293.2,0.1675456]
[1734967582327,3.38095245,3293.7,3293.2,0.1675456]
[1734967582536,0.34482245,3293.7,3293.2,0.1675456]
[1734967582775,0.2443,3293.8,3293.2,0.1675456]
[1734967582943,3.0,3294.1,3293.2,0.1675456]
[1734967583341,0.2443,3294.3,3293.2,0.1675456]
[1734967583978,3.2443,3294.8,3293.3,1.3526]
[1734967584284,2.51918046,3294.9,3293.3,1.3526]
[1734967584449,2.51918046,3294.9,3293.4,3.30751006]
[1734967584648,2.51918046,3294.9,3293.4,6.34386006]
[1734967584856,2.51918046,3294.9,3294.2,0.6065108]
[1734967585058,2.51918046,3294.9,3294.4,3.12513565]
[1734967585656,2.51918046,3294.9,3294.8,1.96130279]
[1734967586469,2.51918046,3294.9,3294.8,2.15743307]